bitfinex-derivatives/quotes_ETHF0:USTF0_20240922
["timestamp","ask_amount","ask_price","bid_price","bid_amount"]
[1727009249041,2.22251392,2580.1,2580.0,3.03452]
[1727009249434,5.43031392,2580.1,2580.0,3.03452]
[1727009249938,5.43031392,2580.1,2580.0,0.38752]
[1727009250730,0.19384707,2580.1,2580.0,0.38752]
[1727009251430,1.51925541,2580.1,2580.0,0.95885054]
[1727009251631,1.71310248,2580.1,2580.0,0.95885054]
[1727009252240,0.19384707,2580.1,2580.0,0.95885054]
[1727009252935,2.81126685,2580.2,2580.1,0.38752]
[1727009253135,3.00510992,2580.2,2580.1,0.38752]
[1727009253336,3.00510992,2580.2,2580.0,0.38752]
[1727009253539,0.19384307,2580.1,2580.0,0.38752]
[1727009253840,0.19384307,2580.1,2580.0,0.95896504]
[1727009256735,1.52031719,2580.1,2580.0,1.97593952]
[1727009256940,1.71416026,2580.1,2580.0,2.37743952]
[1727009257436,1.71416026,2580.1,2580.0,1.36046504]
[1727009257739,0.19384307,2580.1,2580.0,1.36046504]
[1727009258340,1.52040886,2580.1,2580.0,3.13883952]
[1727009258543,1.71424048,2580.1,2580.0,3.13883952]
[1727009259242,1.71424305,2580.1,2580.0,3.13883952]
[1727009259543,1.52040886,2580.1,2580.0,3.13883952]
[1727009260037,1.71424259,2580.1,2580.0,3.13883952]
[1727009260244,1.52040886,2580.1,2580.0,3.13883952]
[1727009261247,1.01364828,2580.2,2580.0,6.13751969]
[1727009261434,1.01370716,2580.2,2580.1,4.04361521]
[1727009261638,1.01370716,2580.2,2580.1,4.43113521]
[1727009261839,1.01370716,2580.2,2580.1,4.43114776]
[1727009262048,1.92040886,2580.3,2580.2,0.3875]
[1727009262244,0.59382357,2580.3,2580.2,0.95894504]
[1727009262441,1.92055769,2580.3,2580.2,0.95894504]
[1727009262741,0.59382558,2580.3,2580.2,0.95894504]
[1727009262942,2.11437605,2580.3,2580.2,0.95894504]
[1727009263148,1.71436518,2580.3,2580.2,0.95894504]
[1727009263338,1.71436518,2580.3,2580.2,1.97507719]
[1727009263540,1.5205396,2580.3,2580.2,1.97507719]
[1727009263745,1.5205396,2580.3,2580.2,3.93505298]
[1727009263940,1.5205396,2580.4,2580.3,0.38749]
[1727009264146,0.19381644,2580.4,2580.3,0.95897886]
[1727009264346,1.5206322,2580.4,2580.3,3.95637886]
[1727009264548,0.19381644,2580.4,2580.3,3.95637376]
[1727009264742,2.42036685,2580.5,2580.4,0.38747]
[1727009264946,2.61418459,2580.5,2580.4,0.38747]
[1727009266253,2.61418621,2580.5,2580.4,0.38747]
[1727009267540,2.61418262,2580.5,2580.4,0.38747]
[1727009270160,2.61289402,2580.5,2580.4,0.38747]
[1727009270354,0.58551577,2580.5,2580.4,0.38747]
[1727009270862,0.3917,2580.5,2580.4,0.38747]
[1727009271050,2.41903892,2580.5,2580.4,0.38747]
[1727009271355,0.58551577,2580.5,2580.4,0.38747]
[1727009272455,0.3917,2580.5,2580.4,0.38747]
[1727009272644,4.89786785,2580.5,2580.4,0.38747]
[1727009272849,2.37051011,2580.5,2580.4,0.38747]
[1727009273147,0.58552224,2580.5,2580.4,0.38747]
[1727009274255,2.61280597,2580.5,2580.4,0.95890211]
[1727009274856,0.58552224,2580.5,2580.4,0.95890211]
[1727009275257,2.61280597,2580.5,2580.4,0.95890211]
[1727009277054,2.61280597,2580.5,2580.4,0.38747]
[1727009277258,2.61280597,2580.5,2580.4,0.95885082]
[1727009277454,2.61279956,2580.5,2580.4,0.95885082]
[1727009278255,0.58551583,2580.5,2580.4,0.95885082]
[1727009279249,0.58551583,2580.5,2580.4,0.38747]
[1727009279460,2.61279956,2580.5,2580.4,0.38747]
[1727009280960,2.61279978,2580.5,2580.4,0.38747]
[1727009282163,0.58551605,2580.5,2580.4,0.95877915]
[1727009282958,0.58551605,2580.5,2580.4,0.38747]
[1727009283159,0.58551605,2580.5,2580.4,0.95876956]
[1727009284358,1.51991441,2580.5,2580.4,1.92745956]
[1727009284559,2.27861441,2580.6,2580.5,0.38746]
[1727009284759,2.47241469,2580.6,2580.5,0.95875956]
[1727009284964,2.84561469,2580.6,2580.5,0.95875956]
[1727009285155,2.65181441,2580.6,2580.5,0.95875956]
[1727009285659,2.65181441,2580.6,2580.5,0.38746]
[1727009285860,2.65181441,2580.6,2580.5,0.95867337]
[1727009286354,2.84561618,2580.6,2580.5,0.95867337]
[1727009286562,2.65181441,2580.6,2580.5,0.95867337]
[1727009288359,2.84562272,2580.6,2580.5,0.38746]
[1727009288559,2.84547674,2580.6,2580.5,0.38746]
[1727009289259,2.84546609,2580.6,2580.5,0.38746]
[1727009289465,0.38746,2580.5,2580.2,3.56413215]
[1727009289665,1.51968554,2580.3,2580.0,1.01613215]
[1727009289866,2.15968923,2580.2,2580.1,0.57113106]
[1727009290074,2.15968923,2580.2,2580.1,3.11913106]
[1727009290267,2.15968923,2580.2,2580.1,3.50665106]
[1727009291362,2.15993511,2580.2,2580.1,3.50665106]
[1727009291568,1.1466,2580.2,2580.1,3.50665106]
[1727009291968,2.66628554,2580.2,2580.1,0.38752]
[1727009292179,0.38752,2580.1,2579.8,1.01613215]
[1727009292372,1.01320532,2579.9,2579.8,2.548]
[1727009292565,1.01320532,2579.9,2579.8,3.1191513]
[1727009292783,1.01320532,2579.9,2579.8,3.5067113]
[1727009293778,1.01320532,2579.9,2579.8,0.9587113]
[1727009294892,1.51980798,2580.0,2579.9,0.38755]
[1727009295079,1.51980798,2580.0,2579.9,0.9587013]
[1727009295281,1.51980798,2580.0,2579.9,0.95864499]
[1727009295992,1.51980798,2580.0,2579.9,0.57109499]
[1727009296193,1.51980798,2580.0,2579.9,0.38755]
[1727009296389,1.51980798,2580.0,2579.9,0.95863271]
[1727009298295,1.51980798,2580.1,2580.0,0.38753]
[1727009298595,1.71365116,2580.1,2580.0,0.38753]
[1727009298787,1.51980798,2580.1,2580.0,0.38753]
[1727009299987,1.71365063,2580.1,2580.0,0.38753]
[1727009302693,1.51980798,2580.1,2580.0,0.38753]
[1727009303093,1.51980798,2580.1,2580.0,4.26353]
[1727009303303,1.1466,2580.2,2580.1,0.38752]
[1727009303595,1.34043647,2580.2,2580.1,0.38752]
[1727009304099,2.86008063,2580.2,2580.1,0.38752]
[1727009304397,1.34043647,2580.2,2580.1,0.38752]
[1727009304791,1.34044086,2580.2,2580.1,0.38752]
[1727009305895,2.86005498,2580.2,2580.1,0.38752]
[1727009307302,2.66621412,2580.2,2580.1,0.38752]
[1727009308009,2.86004978,2580.2,2580.1,0.38752]
[1727009309195,2.8600513,2580.2,2580.1,0.38752]
[1727009309798,2.86005129,2580.2,2580.1,0.38752]
[1727009309998,2.86005309,2580.2,2580.1,0.38752]
[1727009310597,2.66621412,2580.2,2580.1,0.38752]
[1727009310805,2.86005052,2580.2,2580.1,0.38752]
[1727009311004,2.29021412,2580.2,2580.1,0.38752]
[1727009311203,1.78363907,2580.2,2580.1,0.95852747]
[1727009311410,0.7706,2580.2,2580.1,0.95852747]
[1727009311612,1.78363907,2580.2,2580.1,0.95852747]
[1727009311904,0.7706,2580.2,2580.1,0.38752]
[1727009312095,0.7706,2580.2,2580.1,0.95851667]
[1727009314399,1.01303907,2580.3,2580.1,0.95851667]
[1727009314400,1.01303907,2580.3,2580.2,0.3875]
[1727009314600,1.01303907,2580.3,2580.2,3.50749667]
[1727009314999,1.01303907,2580.3,2580.2,4.30819667]
[1727009318006,1.01303907,2580.3,2580.2,4.30818005]
[1727009320911,1.01303907,2580.3,2580.2,3.7372]
[1727009321103,1.01303907,2580.3,2580.2,4.30818206]
[1727009324105,1.01303907,2580.3,2580.2,3.7372]
[1727009324306,1.01303907,2580.3,2580.2,4.30819151]
[1727009327319,1.01303907,2580.3,2580.2,4.30820241]
[1727009327820,1.01303907,2580.3,2580.2,3.50750241]
[1727009331114,1.01303907,2580.3,2580.2,3.50751113]
[1727009333720,1.01303907,2580.3,2580.2,2.9365]
[1727009333931,2.53265319,2580.5,2580.3,1.35622]
[1727009334125,1.01303907,2580.5,2580.4,1.76998666]
[1727009334327,1.01303907,2580.6,2580.5,0.38746]
[1727009334630,1.01303907,2580.6,2580.5,1.40264147]
[1727009334631,1.01355982,2580.6,2580.5,1.40264147]
[1727009334822,1.01355982,2580.7,2580.6,0.38744]
[1727009335022,1.51961412,2580.8,2580.7,0.38743]
[1727009335217,1.7134027,2580.8,2580.6,0.38743]
[1727009335422,1.7134027,2580.8,2580.4,1.38238147]
[1727009335423,1.51961412,2580.7,2580.4,1.38238147]
[1727009335723,1.01342187,2580.6,2580.5,0.38746]
[1727009336127,1.38752187,2580.6,2580.5,0.95861079]
[1727009340624,6.15635412,2580.6,2580.5,0.57115079]
[1727009340823,15.76970804,2580.6,2580.1,0.38751]
[1727009341031,1.9070445,2580.3,2580.1,0.38751]
[1727009341331,1.5195545,2580.2,2580.1,0.38751]
[1727009344025,1.8974545,2580.2,2580.1,0.38751]
[1727009344230,2.09129136,2580.2,2580.1,0.38751]
[1727009344432,1.8974545,2580.2,2580.1,0.38751]
[1727009344635,2.0912881,2580.2,2580.1,0.38751]
[1727009344933,1.8974545,2580.2,2580.1,0.38751]
[1727009346733,2.09128987,2580.2,2580.1,0.38751]
[1727009347034,1.8974545,2580.2,2580.1,0.38751]
[1727009347235,2.09129152,2580.2,2580.1,0.38751]
[1727009352728,2.09129152,2580.2,2580.1,0.95241445]
[1727009353134,2.09129152,2580.2,2580.1,0.56490445]
[1727009353330,4.83523702,2580.2,2580.1,0.5649246]
[1727009353533,6.86130969,2580.2,2580.0,0.38753]
[1727009353844,2.47947725,2580.1,2580.0,0.38753]
[1727009354042,2.47947725,2580.1,2580.0,0.952462]
[1727009354242,2.47947725,2580.1,2580.0,0.95247041]
[1727009354832,2.47947725,2580.1,2580.0,0.38753]
[1727009355145,2.47947725,2580.1,2580.0,0.95244551]
[1727009355347,2.28564023,2580.1,2580.0,0.95244551]
[1727009355539,0.7663,2580.1,2580.0,0.95244551]
[1727009355735,1.77898087,2580.1,2580.0,0.95244551]
[1727009356647,1.77900505,2580.1,2580.0,0.95244551]
[1727009356854,0.7663,2580.1,2580.0,0.95244551]
[1727009357144,1.77900912,2580.1,2580.0,0.95244551]
[1727009357344,0.7663,2580.1,2580.0,0.95244551]
[1727009357543,1.7789661,2580.1,2580.0,0.95241961]
[1727009357742,2.28564023,2580.1,2580.0,0.95241961]
[1727009360746,2.28564023,2580.1,2580.0,0.95236586]
[1727009363953,2.28564023,2580.1,2580.0,2.94053]
[1727009364248,2.28564023,2580.1,2580.0,3.50532479]
[1727009365445,2.28564023,2580.1,2580.0,3.50530356]
[1727009367452,2.28564023,2580.1,2580.0,3.5052849]
[1727009369652,0.7663,2580.1,2580.0,3.5052849]
[1727009369846,1.77874495,2580.1,2580.0,3.5052849]
[1727009370048,0.7663,2580.1,2580.0,3.5052849]
[1727009370448,1.77873686,2580.1,2580.0,3.5052849]
[1727009370966,0.7663,2580.1,2580.0,2.94053]
[1727009371146,0.7663,2580.1,2580.0,3.50525932]
[1727009372061,0.7663,2580.1,2580.0,3.50527082]
[1727009374246,1.77873686,2580.1,2580.0,2.94053]
[1727009374445,1.77873686,2580.1,2580.0,3.50530057]
[1727009376653,1.77892476,2580.1,2580.0,3.50530057]
[1727009376963,0.7663,2580.1,2580.0,3.50530057]
[1727009377162,1.77890228,2580.1,2580.0,3.50530057]
[1727009377454,1.77890228,2580.1,2580.0,2.94053]
[1727009377655,1.77890228,2580.1,2580.0,3.50535968]
[1727009377853,0.7663,2580.1,2580.0,3.50535968]
[1727009378056,1.7789178,2580.1,2580.0,3.50535968]
[1727009379956,1.0126178,2580.1,2580.0,5.37795216]
[1727009380164,1.0126178,2580.2,2580.1,0.38752]
[1727009380363,1.51934023,2580.2,2580.1,0.56482968]
[1727009380552,1.51934023,2580.3,2580.2,0.3875]
[1727009380860,0.19382332,2580.3,2580.2,0.95232968]
[1727009381261,2.21989599,2580.3,2580.2,0.3875]
[1727009383270,2.21989599,2580.3,2580.2,0.95270485]
[1727009383271,0.19382332,2580.3,2580.2,0.95270485]
[1727009384172,5.73067021,2580.4,2580.2,0.95286485]
[1727009384363,4.57027021,2580.3,2580.2,0.3875]
[1727009384567,4.57027021,2580.3,2580.2,0.9528642]
[1727009386668,4.57174278,2580.3,2580.2,0.9528642]
[1727009387169,4.57174278,2580.3,2580.2,0.3875]
[1727009387569,4.57174278,2580.3,2580.2,2.8733214]
[1727009387570,0.19383506,2580.3,2580.2,2.8733214]
[1727009387765,5.73221693,2580.4,2580.3,0.38749]
[1727009388068,5.73221693,2580.4,2580.3,1.85810074]
[1727009388279,5.73221693,2580.4,2580.3,1.85803122]
[1727009388574,1.35422335,2580.4,2580.3,2.87321269]
[1727009388963,1.35422335,2580.4,2580.3,3.85790298]
[1727009389273,1.35422335,2580.4,2580.3,2.35037742]
[1727009389667,5.73188793,2580.4,2580.3,1.96288742]
[1727009389865,5.73188793,2580.4,2580.3,1.44547215]
[1727009390765,3.20453019,2580.4,2580.3,1.44547215]
[1727009390971,5.546094,2580.4,2580.3,1.44547215]
[1727009391173,3.20453019,2580.4,2580.3,1.44547215]
[1727009391470,3.695703,2580.4,2580.3,1.44547215]
[1727009391669,3.20453019,2580.4,2580.3,1.44547215]
[1727009391875,3.69570515,2580.4,2580.3,1.44547215]
[1727009392065,3.20453019,2580.4,2580.3,1.44547215]
[1727009392271,3.69571487,2580.4,2580.3,1.44547215]
[1727009392470,3.20453019,2580.4,2580.3,1.44533981]
[1727009392668,1.35422335,2580.4,2580.3,1.44533981]
[1727009392868,5.73979747,2580.4,2580.3,1.44533981]
[1727009393070,5.73982917,2580.4,2580.3,1.44533981]
[1727009393275,3.20453019,2580.4,2580.3,1.44533981]
[1727009393479,3.88948207,2580.4,2580.3,1.44533981]
[1727009393673,5.73978733,2580.4,2580.3,1.44533981]
[1727009394379,5.73978733,2580.4,2580.3,0.8798362]
[1727009394772,5.73978733,2580.4,2580.3,1.44532352]
[1727009395582,5.73978733,2580.4,2580.3,0.8798362]
[1727009395975,5.73978733,2580.4,2580.3,1.44531179]
[1727009396273,5.73978733,2580.4,2580.3,2.01078623]
[1727009396573,5.73962801,2580.4,2580.3,2.01078623]
[1727009396889,5.73962801,2580.4,2580.3,0.95296444]
[1727009397971,5.73962801,2580.4,2580.1,1.38288147]
[1727009397972,9.61482801,2580.4,2580.1,1.01518147]
[1727009398175,0.38755,2579.9,2579.7,1.40275147]
[1727009398380,3.38718452,2579.8,2579.6,1.40276147]
[1727009398575,2.22132452,2579.7,2579.6,0.38758]
[1727009399379,0.19384222,2579.7,2579.6,0.38758]
[1727009400778,2.8057823,2579.8,2579.7,0.38758]
[1727009401075,2.99964935,2579.8,2579.7,0.38758]
[1727009402668,2.99964935,2579.8,2579.6,0.38758]
[1727009402669,6.87564935,2579.8,2579.6,0.38758]
[1727009402976,1.71337652,2579.7,2579.6,0.38758]
[1727009403582,1.71337652,2579.7,2579.5,9.8558]
[1727009403780,1.90710947,2579.6,2579.4,0.38762]
[1727009403971,1.51950947,2579.5,2579.2,11.23448147]
[1727009404170,2.3986823,2579.6,2579.4,0.38761]
[1727009404380,1.71344325,2579.5,2579.4,0.38761]
[1727009404684,0.19389191,2579.5,2579.4,0.38761]
[1727009405078,1.5197532,2579.5,2579.4,0.38761]
[1727009408187,1.01233864,2579.5,2579.4,0.38761]
[1727009408877,1.5197532,2579.5,2579.4,0.38761]
[1727009409387,0.3712,2579.6,2579.5,0.38761]
[1727009409388,1.8909532,2579.6,2579.5,0.38761]
[1727009409578,2.47242893,2579.6,2579.5,0.38761]
[1727009409773,6.34922893,2579.6,2579.5,0.38761]
[1727009410279,6.34922893,2579.6,2579.4,0.38762]
[1727009410473,1.01197106,2579.5,2579.4,0.38762]
[1727009411695,1.38317106,2579.6,2579.5,0.38761]
[1727009412181,1.01197106,2579.6,2579.5,0.38761]
[1727009412380,3.2078,2579.7,2579.6,0.38759]
[1727009412381,4.21977106,2579.7,2579.6,0.38759]
[1727009416575,1.01197106,2579.7,2579.6,0.38759]
[1727009416783,4.21977106,2579.7,2579.6,0.38759]
[1727009417983,4.59697106,2579.7,2579.6,0.38759]
[1727009418882,4.99637106,2579.7,2579.6,0.38759]
[1727009421698,4.61917106,2579.7,2579.6,0.38759]
[1727009422688,1.41137106,2579.7,2579.6,0.38759]
[1727009422895,5.01407106,2579.7,2579.6,0.38759]
[1727009424191,0.38762,2579.5,2579.3,0.38763]
[1727009424391,3.2078,2579.4,2579.3,0.38763]
[1727009424690,4.21889188,2579.4,2579.3,0.38763]
[1727009426490,1.01109188,2579.6,2579.5,0.38761]
[1727009426798,5.01319188,2579.7,2579.6,0.38759]
[1727009429393,1.80539188,2579.7,2579.6,0.38759]
[1727009431098,1.80553197,2579.7,2579.6,0.38759]
[1727009431404,0.7943,2579.7,2579.6,0.38759]
[1727009431904,2.3140532,2579.7,2579.6,0.38759]
[1727009432092,0.7943,2579.7,2579.6,0.38759]
[1727009432292,2.3140532,2579.7,2579.6,0.38759]
[1727009432488,5.5218532,2579.7,2579.6,0.38759]
[1727009432700,5.9094332,2579.7,2579.6,0.38759]
[1727009432895,5.9094332,2579.7,2579.3,0.7993]
[1727009432896,0.38759,2579.6,2579.5,0.3876]
[1727009433099,1.9073432,2579.6,2579.5,0.3876]
[1727009433599,1.5197532,2579.6,2579.5,0.7726]
[1727009434504,1.71364707,2579.6,2579.5,0.7726]
[1727009434800,2.10123707,2579.6,2579.5,0.385]
[1727009434994,2.2839432,2579.6,2579.5,0.385]
[1727009435195,0.38762,2579.5,2579.3,0.38764]
[1727009435400,1.01151769,2579.4,2579.2,2.9178]
[1727009435701,0.7605,2579.3,2579.2,0.76644]
[1727009436299,1.77201769,2579.3,2579.2,0.76644]
[1727009438502,2.14651769,2579.3,2579.2,0.76645]
[1727009438807,1.135,2579.3,2579.2,0.76645]
[1727009439003,2.65227654,2579.3,2579.2,0.76645]
[1727009440603,2.65227654,2579.3,2579.2,0.38765]
[1727009441106,2.84619272,2579.3,2579.2,0.38765]
[1727009441504,2.84619272,2579.3,2579.1,0.38766]
[1727009441505,3.23383272,2579.3,2579.1,0.38766]
[1727009441701,1.51727654,2579.2,2579.1,0.38766]
[1727009442009,1.01256916,2579.2,2579.1,0.38766]
[1727009442301,1.135,2579.3,2579.2,0.38765]
[1727009442508,0.954416,2579.3,2579.2,0.38765]
[1727009443309,2.98189513,2579.3,2579.2,0.38765]
[1727009444306,0.95441283,2579.3,2579.2,0.38765]
[1727009445412,2.98189513,2579.3,2579.2,0.38765]
[1727009445602,0.95441283,2579.3,2579.2,0.38765]
[1727009445802,2.98189513,2579.3,2579.2,0.38765]
[1727009446806,2.7879823,2579.3,2579.2,0.38765]
[1727009447709,2.0274823,2579.3,2579.2,0.38765]
[1727009447908,2.22139503,2579.3,2579.2,0.94632175]
[1727009448107,3.74147525,2579.3,2579.2,0.94632175]
[1727009449624,1.71399295,2579.3,2579.2,0.94632175]
[1727009450314,1.71399295,2579.3,2579.2,4.26445]
[1727009450513,1.71399295,2579.3,2579.2,6.20899878]
[1727009451016,1.71399295,2579.3,2579.2,2.33219878]
[1727009451208,1.52008022,2579.3,2579.2,2.33219878]
[1727009451412,1.52008022,2579.3,2579.2,1.84028763]
[1727009451715,1.52008022,2579.3,2579.2,2.33221818]
[1727009451913,1.52008022,2579.3,2579.2,0.38765]
[1727009452215,1.52008022,2579.3,2579.2,0.94637043]
[1727009452801,1.52008022,2579.3,2579.2,1.84031532]
[1727009453015,1.52008022,2579.3,2579.2,2.33223605]
[1727009453813,1.52008022,2579.3,2579.2,2.33223339]
[1727009454610,1.01354121,2579.3,2579.2,3.34741486]
[1727009456215,1.01354121,2579.3,2579.2,2.85549426]
[1727009456526,1.01354121,2579.3,2579.2,1.40283147]
[1727009457312,1.01354121,2579.3,2579.2,2.29675359]
[1727009457512,1.01354121,2579.3,2579.2,7.70139491]
[1727009457717,1.01354121,2579.3,2579.2,5.72548686]
[1727009457912,1.01354121,2579.3,2579.2,8.78725223]
[1727009458217,1.01354121,2579.3,2579.2,6.63905868]
[1727009458406,1.01354121,2579.3,2579.2,8.09159288]
[1727009458807,1.01354121,2579.3,2579.2,7.59971821]
[1727009459218,1.01354121,2579.3,2579.2,8.0214319]
[1727009459419,1.01354121,2579.3,2579.2,8.51331378]
[1727009459615,1.01354121,2579.4,2579.3,0.38764]
[1727009459919,1.01354121,2579.4,2579.3,3.34799721]
[1727009460217,1.01354121,2579.4,2579.3,3.75141276]
[1727009460616,1.01354121,2579.4,2579.3,3.25951533]
[1727009461214,1.52008022,2579.4,2579.3,3.888707]
[1727009461724,1.71397313,2579.4,2579.3,3.888707]
[1727009461915,0.19389291,2579.4,2579.3,3.888707]
[1727009462108,1.52026754,2579.4,2579.3,3.888707]
[1727009462317,1.71423882,2579.4,2579.3,3.888707]
[1727009463718,1.71435264,2579.4,2579.3,3.888707]
[1727009463919,1.71435814,2579.4,2579.3,3.888707]
[1727009464218,1.71435653,2579.4,2579.3,3.888707]
[1727009464416,1.71435653,2579.4,2579.3,3.8888505]
[1727009464622,1.71433595,2579.4,2579.3,1.3498505]
[1727009464822,1.7143902,2579.4,2579.3,1.3498505]
[1727009465117,0.1938913,2579.4,2579.3,1.3498505]
[1727009465315,0.1938913,2579.4,2579.3,0.9622105]
[1727009465515,2.6062736,2579.4,2579.3,0.9464505]
[1727009466121,2.6062736,2579.4,2579.3,0.94651293]
[1727009467319,0.5787913,2579.4,2579.3,0.94651293]
[1727009467725,0.1938913,2579.4,2579.3,0.94651293]
[1727009468020,1.52041523,2579.4,2579.3,0.94651293]
[1727009468228,1.71430294,2579.4,2579.3,0.94651293]
[1727009468722,1.7143006,2579.4,2579.3,0.94651293]
[1727009468928,1.52041523,2579.4,2579.3,0.94651293]
[1727009469228,1.71430522,2579.4,2579.3,0.94651293]
[1727009470621,1.71430522,2579.4,2579.3,1.84081342]
[1727009470827,1.71430522,2579.4,2579.3,0.94651293]
[1727009471023,1.71430522,2579.4,2579.3,1.84080864]
[1727009471229,1.71430522,2579.4,2579.3,0.94651293]
[1727009472027,2.22137229,2579.4,2579.3,0.94651293]
[1727009472330,2.58747229,2579.4,2579.3,0.94651293]
[1727009474031,2.58747972,2579.4,2579.3,0.94651293]
[1727009474226,0.94761742,2579.4,2579.3,0.55900574]
[1727009474431,8.54672903,2579.4,2579.2,2.92564]
[1727009474626,2.22072046,2579.3,2579.2,2.92564]
[1727009474829,2.22072046,2579.3,2579.2,3.48465813]
[1727009477737,2.22072046,2579.3,2579.2,3.48467892]
[1727009478828,0.19389855,2579.3,2579.2,4.37916717]
[1727009479232,2.02682304,2579.4,2579.3,0.38764]
[1727009479431,2.22071437,2579.4,2579.3,0.94667892]
[1727009480031,2.22071437,2579.4,2579.3,1.91577892]
[1727009480334,2.22071437,2579.4,2579.3,12.37018505]
[1727009480335,1.01364042,2579.4,2579.3,12.37018505]
[1727009480538,1.01364042,2579.4,2579.3,14.27552207]
[1727009480738,1.01364042,2579.4,2579.3,10.98354708]
[1727009481044,1.01364042,2579.4,2579.3,14.27530784]
[1727009481539,1.01364042,2579.4,2579.3,14.45698985]
[1727009481738,1.01364042,2579.4,2579.3,15.24420283]
[1727009481939,1.01364042,2579.5,2579.4,0.38762]
[1727009482238,1.52037987,2579.6,2579.5,0.76771]
[1727009482440,1.7142491,2579.6,2579.5,1.3266764]
[1727009482737,0.3825,2579.8,2579.5,1.3266764]
[1727009482738,1.01341217,2579.8,2579.5,8.5927002]
[1727009482935,1.01341217,2579.7,2579.6,4.34863994]
[1727009483130,1.90237987,2579.8,2579.6,5.00721611]
[1727009483331,0.382,2579.8,2579.7,0.9465464]
[1727009483628,1.90215639,2579.8,2579.7,0.9465464]
[1727009483835,2.09601554,2579.8,2579.7,0.9465464]
[1727009484030,2.60268219,2579.8,2579.7,0.38758]
[1727009484235,2.60268219,2579.8,2579.7,0.94632531]
[1727009484433,2.60268219,2579.8,2579.7,0.38758]
[1727009487734,2.60268219,2579.8,2579.6,0.38759]
[1727009487940,0.58455915,2579.7,2579.6,0.38759]
[1727009488440,0.58457579,2579.7,2579.6,0.38759]
[1727009488941,2.99897883,2579.7,2579.6,0.38759]
[1727009489144,0.3876,2579.6,2579.4,2.92562]
[1727009489340,2.21925875,2579.5,2579.4,0.38762]
[1727009489539,5.81466875,2579.5,2579.3,0.77793]
[1727009489735,0.97407579,2579.4,2579.3,0.77793]
[1727009491554,2.99945875,2579.4,2579.3,0.77793]
[1727009491741,0.97407579,2579.4,2579.3,0.77793]
[1727009492241,2.99945875,2579.4,2579.3,0.77793]
[1727009492845,0.97407579,2579.4,2579.3,0.77793]
[1727009493152,2.99945875,2579.4,2579.3,0.77793]
[1727009494146,0.97407579,2579.4,2579.3,0.77793]
[1727009494543,2.99945875,2579.4,2579.3,0.77793]
[1727009494844,2.08835709,2579.4,2579.3,1.33668349]
[1727009496339,1.5184813,2579.4,2579.3,1.33668349]
[1727009496537,3.2078,2579.5,2579.4,0.38762]
[1727009496737,4.92026836,2579.5,2579.4,0.94637349]
[1727009498043,4.92026836,2579.5,2579.4,0.94634567]
[1727009498044,4.72638192,2579.5,2579.4,0.94634567]
[1727009498238,4.92026661,2579.5,2579.4,0.94634567]
[1727009499150,1.71246661,2579.5,2579.4,0.94634567]
[1727009499340,1.71247106,2579.5,2579.4,0.94634567]
[1727009499649,1.71251781,2579.5,2579.4,0.94634567]
[1727009499949,1.71251991,2579.5,2579.4,0.94634567]
[1727009500142,0.19388469,2579.5,2579.4,0.94634567]
[1727009500342,1.51861675,2579.5,2579.4,0.94634567]
[1727009500549,0.19388469,2579.5,2579.4,0.94634567]
[1727009500740,1.51863496,2579.5,2579.4,0.94634567]
[1727009501048,1.71251965,2579.5,2579.4,0.94634567]
[1727009501251,1.71249604,2579.5,2579.4,0.94633342]
[1727009501548,1.71249384,2579.5,2579.4,0.94633342]
[1727009501845,0.19388469,2579.5,2579.4,0.94633342]
[1727009502041,1.51863286,2579.5,2579.4,0.94633342]
[1727009502236,1.71251755,2579.5,2579.4,0.94633342]
[1727009502441,1.71247921,2579.5,2579.4,0.94633342]
[1727009503048,1.71259218,2579.5,2579.4,0.94633342]
[1727009503938,0.19388469,2579.5,2579.4,0.94633342]
[1727009504136,2.39268296,2579.6,2579.5,0.38761]
[1727009504334,2.58656649,2579.6,2579.5,0.38761]
[1727009507548,2.58656649,2579.6,2579.5,0.94636039]
[1727009507748,0.19388353,2579.6,2579.5,0.94636039]
[1727009507943,2.21925277,2579.7,2579.6,0.38759]
[1727009508150,2.21925274,2579.7,2579.6,0.38759]
[1727009508344,2.02538296,2579.7,2579.6,0.38759]
[1727009511651,2.02538296,2579.7,2579.6,0.76339]
[1727009512857,2.21925592,2579.7,2579.6,0.76339]
[1727009513056,2.02538296,2579.7,2579.6,0.76339]
[1727009513451,1.71258952,2579.7,2579.6,5.19889366]
[1727009513651,1.01249113,2579.7,2579.6,8.38076143]
[1727009513852,1.01249113,2579.8,2579.7,0.38758]
[1727009514063,1.01249113,2579.8,2579.7,7.64640105]
[1727009514357,1.51871656,2579.9,2579.8,0.38756]
[1727009514358,1.01249113,2579.9,2579.8,0.38756]
[1727009514564,1.01249113,2579.9,2579.8,6.73196423]
[1727009514762,1.01249113,2579.9,2579.8,4.82226366]
[1727009516464,1.01249113,2580.0,2579.9,0.38755]
[1727009516768,1.01249113,2580.1,2580.0,0.38753]
[1727009516961,1.79899113,2580.2,2580.1,0.38752]
[1727009517166,1.79899113,2580.2,2580.1,10.04622366]
[1727009517461,1.79899113,2580.2,2580.1,9.48752]
[1727009518766,1.01249113,2580.2,2580.1,9.48752]
[1727009519671,1.79769113,2580.3,2580.2,0.3875]
[1727009520062,0.7852,2580.3,2580.2,0.7648]
[1727009520355,0.7852,2580.3,2580.2,0.3773]
[1727009520561,2.30391656,2580.3,2580.2,0.3773]
[1727009521162,2.49775091,2580.3,2580.2,0.3773]
[1727009521366,2.30391656,2580.3,2580.2,0.7648]
[1727009522770,0.38756,2579.9,2579.6,4.102]
[1727009523068,0.38756,2579.9,2579.6,13.58959]
[1727009523069,1.0109643,2579.7,2579.6,13.58959]
[1727009523664,1.0109643,2579.7,2579.6,4.48959]
[1727009524665,2.66440645,2579.8,2579.6,4.48959]
[1727009524870,1.90402645,2579.7,2579.6,4.102]
[1727009525171,3.7892674,2579.7,2579.6,4.102]
[1727009525371,7.6660674,2579.7,2579.6,4.102]
[1727009525771,10.0936012,2579.7,2579.3,2.537]
[1727009525965,1.71031124,2579.6,2579.5,0.3876]
[1727009526366,5.58711124,2579.6,2579.5,0.3876]
[1727009526663,5.58710866,2579.6,2579.5,0.3876]
[1727009526868,5.58710973,2579.6,2579.5,0.3876]
[1727009527075,5.58710826,2579.6,2579.5,0.3876]
[1727009527373,5.39321864,2579.6,2579.5,0.3876]
[1727009528372,0.38762,2579.5,2579.3,2.92463]
[1727009528571,4.21870885,2579.4,2579.3,2.92463]
[1727009528769,5.11816328,2579.4,2579.3,0.38763]
[1727009529367,0.38764,2579.3,2579.2,9.1]
[1727009529569,1.40336141,2579.3,2579.2,0.38765]
[1727009529780,1.40331218,2579.3,2579.2,0.38765]
[1727009529965,0.3925,2579.3,2579.2,0.38765]